bitfinex/quotes_BTCUSD_20241215
["timestamp","ask_amount","ask_price","bid_price","bid_amount"]
[1734302195989,1.27988629,103230.0,103220.0,0.00016378]
[1734302196201,1.06652023,103230.0,103220.0,0.00016378]
[1734302196419,1.06659227,103230.0,103220.0,0.00016378]
[1734302196838,0.96753824,103230.0,103220.0,0.00016378]
[1734302197477,0.96753824,103230.0,103220.0,0.00024998]
[1734302200132,0.97258555,103230.0,103220.0,0.00024998]
[1734302200358,0.97258555,103230.0,103190.0,0.1293]
[1734302200568,0.21051659,103200.0,103190.0,5.451e-05]
[1734302200981,0.21886875,103200.0,103190.0,5.451e-05]
[1734302203353,0.21886875,103200.0,103190.0,0.07525451]
[1734302206514,0.13040619,103200.0,103190.0,0.07525451]
[1734302208991,0.13040619,103200.0,103190.0,0.07534071]
[1734302210082,0.18849271,103200.0,103190.0,0.07534071]
[1734302210339,0.29657923,103200.0,103190.0,0.00014071]
[1734302210577,0.49037723,103200.0,103190.0,0.00014071]
[1734302211282,0.57711434,103200.0,103190.0,0.00014071]
[1734302212026,0.5494652,103200.0,103190.0,0.00014071]
[1734302213348,0.67957086,103200.0,103190.0,0.00014071]
[1734302214292,0.76137086,103200.0,103190.0,0.00014071]
[1734302215425,0.93484508,103200.0,103190.0,0.00014071]
[1734302216336,1.15168785,103200.0,103190.0,0.00014071]
[1734302217390,1.25252867,103200.0,103190.0,0.00014071]
[1734302217815,1.13991735,103200.0,103190.0,0.00014071]
[1734302218022,1.4326551,103200.0,103190.0,0.00014071]
[1734302218237,1.17244377,103200.0,103190.0,0.00014071]
[1734302219089,1.21704377,103200.0,103190.0,0.00014071]
[1734302220092,1.17244377,103200.0,103190.0,0.00014071]
[1734302220316,1.17748767,103200.0,103190.0,0.00014071]
[1734302220737,1.17766007,103200.0,103190.0,0.00014071]
[1734302222017,1.17828272,103200.0,103190.0,0.00014071]
[1734302222796,1.61692709,103200.0,103190.0,0.00014071]
[1734302224221,1.68762709,103200.0,103190.0,0.00014071]
[1734302224431,1.24503302,103200.0,103190.0,0.00014071]
[1734302224648,1.68367739,103200.0,103190.0,0.00014071]
[1734302224862,1.24503302,103200.0,103190.0,0.00014071]
[1734302226391,0.6756648,103190.0,103180.0,8.62e-05]
[1734302226604,1.47842655,103190.0,103180.0,0.00024995]
[1734302226829,1.17381889,103190.0,103180.0,0.00024995]
[1734302227973,1.17597506,103190.0,103180.0,0.00024995]
[1734302230354,1.37597506,103190.0,103180.0,0.00024995]
[1734302230663,1.81166197,103190.0,103180.0,0.00024995]
[1734302231120,1.80830503,103190.0,103180.0,0.00024995]
[1734302231383,1.3755844,103190.0,103180.0,0.00024995]
[1734302234178,1.37296041,103190.0,103180.0,0.00024995]
[1734302234673,1.63324244,103190.0,103180.0,0.00024995]
[1734302235393,1.64280958,103190.0,103180.0,0.00024995]
[1734302236640,1.12609586,103190.0,103180.0,0.00024995]
[1734302236884,1.16775235,103190.0,103180.0,0.00024995]
[1734302237149,0.96775313,103190.0,103180.0,0.00024995]
[1734302237869,0.99075313,103190.0,103180.0,0.00024995]
[1734302238810,0.87447059,103190.0,103180.0,0.00024995]
[1734302239060,0.99075313,103190.0,103180.0,0.00024995]
[1734302239767,0.87447059,103190.0,103180.0,0.00024995]
[1734302239768,0.99075313,103190.0,103180.0,0.00024995]
[1734302242783,1.05462502,103190.0,103180.0,0.00024995]
[1734302243035,1.17090756,103190.0,103180.0,0.00024995]
[1734302243534,1.25765164,103190.0,103180.0,0.00024995]
[1734302244046,1.2576561,103190.0,103180.0,0.00024995]
[1734302244285,1.17090756,103190.0,103180.0,0.00024995]
[1734302244518,1.25765794,103190.0,103180.0,0.00024995]
[1734302244992,1.17090756,103190.0,103180.0,0.00024995]
[1734302246484,1.04078836,103190.0,103180.0,0.00024995]
[1734302246717,1.1687584,103190.0,103180.0,0.00024995]
[1734302247446,1.16876343,103190.0,103180.0,0.00024995]
[1734302248176,1.03859636,103190.0,103180.0,0.00024995]
[1734302249198,1.03885233,103190.0,103180.0,0.00024995]
[1734302250261,1.07981266,103190.0,103180.0,0.00024995]
[1734302251235,0.08114127,103170.0,103150.0,0.38776]
[1734302251460,0.09905403,103160.0,103150.0,0.38776]
[1734302251726,0.10775718,103160.0,103150.0,0.38776]
[1734302254092,0.10775718,103160.0,103150.0,0.39196]
[1734302261019,0.10350425,103160.0,103150.0,0.39196]
[1734302266193,0.10350425,103160.0,103150.0,0.3920463]
[1734302271834,0.10572936,103160.0,103150.0,0.3920463]
[1734302273323,0.10572936,103160.0,103150.0,0.17479908]
[1734302273533,0.10572936,103160.0,103150.0,0.36868008]
[1734302274810,0.10572936,103160.0,103150.0,0.36448008]
[1734302277199,0.10795218,103160.0,103150.0,0.36448008]
[1734302277539,0.10812478,103160.0,103150.0,0.36448008]
[1734302283427,0.19513935,103160.0,103150.0,0.36448008]
[1734302283641,0.10812478,103160.0,103140.0,0.20774289]
[1734302284071,0.10812478,103160.0,103150.0,0.19388]
[1734302284315,0.10812478,103160.0,103150.0,0.387761]
[1734302287017,0.10489496,103160.0,103150.0,0.387761]
[1734302288649,0.15279496,103160.0,103150.0,0.387761]
[1734302288864,0.15279496,103160.0,103150.0,0.3878473]
[1734302292801,0.23998778,103160.0,103150.0,0.3878473]
[1734302293683,0.37077701,103160.0,103150.0,0.3878473]
[1734302294573,0.54516265,103160.0,103150.0,0.3878473]
[1734302297019,0.54517687,103160.0,103150.0,0.3878473]
[1734302299150,0.37078491,103160.0,103150.0,0.3878473]
[1734302306077,0.37078086,103160.0,103150.0,0.3878473]
[1734302309114,0.44908086,103160.0,103150.0,0.3878473]
[1734302309597,0.62346958,103160.0,103150.0,0.3878473]
[1734302310425,0.62347459,103160.0,103150.0,0.3878473]
[1734302312387,0.62347459,103160.0,103150.0,0.1939663]
[1734302316350,0.62347459,103160.0,103150.0,0.3439663]
[1734302316351,0.44908364,103160.0,103150.0,0.3439663]
[1734302316589,0.00584093,103160.0,103150.0,0.40630757]
[1734302316816,9.3e-07,103160.0,103150.0,1.00373572]
[1734302317036,0.21821561,103190.0,103160.0,0.05]
[1734302317246,0.00022693,103190.0,103180.0,0.40197727]
[1734302318335,0.00022693,103190.0,103180.0,0.40617727]
[1734302322570,0.00022693,103190.0,103180.0,0.43477024]
[1734302332303,0.00805261,103190.0,103180.0,0.43477024]
[1734302336875,0.00805261,103190.0,103180.0,0.43057024]
[1734302342419,0.00805261,103190.0,103180.0,0.48871151]
[1734302342640,0.00805261,103190.0,103180.0,0.43057024]
[1734302345649,0.00805261,103190.0,103180.0,0.24052476]
[1734302345884,0.00805261,103190.0,103180.0,0.23673424]
[1734302346330,0.00805261,103190.0,103180.0,0.43057024]
[1734302349053,0.13715261,103190.0,103180.0,0.37242897]
[1734302349266,0.00805261,103190.0,103180.0,0.52962427]
[1734302349474,0.00805261,103190.0,103180.0,0.58776554]
[1734302351601,0.00805261,103190.0,103180.0,0.52962427]
[1734302354174,6.1e-07,103190.0,103180.0,0.63776554]
[1734302354439,3.7e-07,103190.0,103180.0,0.70547361]
[1734302354668,3.7e-07,103190.0,103180.0,0.69196554]
[1734302354669,6.2e-07,103190.0,103180.0,0.69196554]
[1734302354886,0.0001724,103200.0,103190.0,0.15]
[1734302355135,0.0001724,103200.0,103190.0,0.50197965]
[1734302355338,0.0001724,103200.0,103190.0,0.5010123]
[1734302361222,0.0001724,103200.0,103190.0,0.58701551]
[1734302361878,0.00480291,103200.0,103190.0,0.5010123]
[1734302362324,0.1296,103210.0,103190.0,1.1828114]
[1734302362545,0.0821,103220.0,103210.0,0.343771]
[1734302362761,0.0821,103220.0,103210.0,0.40191227]
[1734302362978,0.0821,103220.0,103210.0,0.59568327]
[1734302364795,0.0821,103220.0,103210.0,0.6947373]
[1734302365251,0.0821,103220.0,103210.0,0.78074051]
[1734302365476,0.0821,103220.0,103210.0,0.90974532]
[1734302365702,0.0821,103220.0,103210.0,0.78074051]
[1734302366362,0.13182698,103230.0,103220.0,0.34376]
[1734302366580,0.13182698,103230.0,103220.0,0.55909657]
[1734302367475,0.00022698,103230.0,103220.0,0.60909657]
[1734302369389,9.8e-07,103230.0,103220.0,0.60909657]
[1734302370250,0.08199514,103240.0,103230.0,0.15]
[1734302370485,0.08199514,103240.0,103230.0,0.3071953]
[1734302370709,0.08199514,103240.0,103230.0,0.5009373]
[1734302374713,0.08199514,103240.0,103230.0,0.60907857]
[1734302374933,0.08199514,103240.0,103230.0,0.5509373]
[1734302377311,0.08199514,103240.0,103230.0,0.56032846]
[1734302378392,0.08199514,103240.0,103230.0,0.61032846]
[1734302379893,0.08199514,103240.0,103230.0,0.63003894]
[1734302382631,0.08208134,103240.0,103230.0,0.63003894]
[1734302387993,0.08208134,103240.0,103230.0,0.542319]
[1734302390260,0.08208134,103240.0,103230.0,0.60046027]
[1734302390469,0.08208134,103240.0,103230.0,0.62743445]
[1734302392345,0.08208134,103240.0,103230.0,0.65116642]
[1734302394574,0.12798134,103240.0,103230.0,0.51115191]
[1734302394777,0.12798134,103240.0,103230.0,0.542319]
[1734302396046,0.12798134,103240.0,103230.0,0.60046027]
[1734302396487,0.12798134,103240.0,103230.0,0.542319]
[1734302400437,0.12798134,103240.0,103230.0,0.22284364]
[1734302400875,0.12798134,103240.0,103230.0,0.20313316]
[1734302401325,0.22703537,103240.0,103230.0,0.193742]
[1734302401755,0.1267,103230.0,103220.0,0.1939174]
[1734302402198,0.1267,103230.0,103220.0,0.19397198]
[1734302402426,0.1267,103230.0,103220.0,0.20353007]
[1734302403095,0.22575403,103230.0,103220.0,0.20353007]
[1734302403987,0.22575403,103230.0,103220.0,0.2233446]
[1734302407728,0.4776373,103230.0,103220.0,0.00022698]
[1734302407939,0.1318,103220.0,103210.0,0.193764]
[1734302408153,0.23085403,103220.0,103210.0,0.193764]
[1734302409501,0.23085403,103220.0,103200.0,0.387571]
[1734302409502,0.1318,103210.0,103200.0,0.387571]
[1734302409713,0.23085403,103210.0,103200.0,0.3971403]
[1734302412336,0.23085403,103210.0,103200.0,0.387571]
[1734302412954,0.1293,103200.0,103190.0,0.193806]
[1734302413171,0.22835403,103200.0,103190.0,0.193806]
[1734302413427,0.22835403,103200.0,103190.0,0.387612]
[1734302416479,0.22835403,103200.0,103190.0,0.36482421]
[1734302416697,0.22835403,103200.0,103190.0,0.36499661]
[1734302419538,0.22835403,103200.0,103190.0,0.17119061]
[1734302422617,0.22835403,103200.0,103190.0,0.0001724]
[1734302426044,0.1225,103190.0,103180.0,0.387647]
[1734302426293,0.22155403,103190.0,103180.0,0.387647]
[1734302427501,0.22155403,103190.0,103180.0,0.38770153]
[1734302431791,0.22669305,103190.0,103180.0,0.38770153]
[1734302439852,0.28483432,103190.0,103180.0,5.453e-05]
[1734302440348,0.28483432,103190.0,103180.0,0.00014073]
[1734302440596,0.28500672,103190.0,103180.0,0.00014073]
[1734302441405,0.47882372,103190.0,103180.0,0.00014073]
[1734302441646,0.57991626,103190.0,103180.0,0.00014073]
[1734302441905,0.50182372,103190.0,103180.0,0.00014073]
[1734302443194,0.55182372,103190.0,103180.0,0.00014073]
[1734302443397,0.75182372,103190.0,103180.0,0.00014073]
[1734302445880,0.9679956,103190.0,103180.0,0.00014073]
[1734302446625,0.83829247,103190.0,103180.0,0.00014073]
[1734302447358,0.84782661,103190.0,103180.0,0.00014073]
[1734302447595,0.97752974,103190.0,103180.0,0.00014073]
[1734302452616,1.15046725,103190.0,103180.0,0.00014073]
[1734302459502,1.09232598,103190.0,103180.0,0.00014073]
[1734302459720,1.15046725,103190.0,103180.0,0.00014073]
[1734302461061,1.15233132,103190.0,103180.0,0.00014073]
[1734302463527,1.15234155,103190.0,103180.0,0.00014073]
[1734302464186,1.10234155,103190.0,103180.0,0.00014073]
[1734302464405,1.15234155,103190.0,103180.0,0.00014073]
[1734302465064,1.10234155,103190.0,103180.0,0.00014073]
[1734302467097,1.10241116,103190.0,103180.0,0.00014073]
[1734302467326,1.319663,103190.0,103180.0,0.00014073]
[1734302467689,1.10241116,103190.0,103180.0,0.00014073]
[1734302468087,1.319663,103190.0,103180.0,0.00014073]
[1734302468787,1.10241116,103190.0,103180.0,0.00014073]
[1734302469046,1.319663,103190.0,103180.0,0.00014073]
[1734302471443,1.3196859,103190.0,103180.0,0.00014073]
[1734302471663,1.23276227,103190.0,103180.0,0.00014073]
[1734302471895,1.31969027,103190.0,103180.0,0.00014073]
[1734302472101,1.23276227,103190.0,103180.0,0.00014073]
[1734302472978,1.23781124,103190.0,103180.0,0.00014073]
[1734302473643,1.10746014,103190.0,103180.0,0.00014073]
[1734302474065,1.23787227,103190.0,103180.0,0.00014073]
[1734302474488,1.10746014,103190.0,103180.0,0.00014073]
[1734302474732,1.25655087,103190.0,103180.0,0.00014073]
[1734302474934,1.10746014,103190.0,103180.0,0.00014073]
[1734302477565,1.15746014,103190.0,103180.0,0.00014073]
[1734302477790,1.16560141,103190.0,103180.0,0.00014073]
[1734302478005,0.99179994,103190.0,103180.0,0.00014073]
[1734302478448,1.09085397,103190.0,103180.0,0.00014073]
[1734302478662,1.13430434,103190.0,103180.0,0.00014073]
[1734302480269,1.03525031,103190.0,103180.0,0.00014073]
[1734302484653,1.06783809,103190.0,103180.0,0.00014073]
[1734302484875,1.32909036,103190.0,103180.0,0.00014073]
[1734302485345,1.06783809,103190.0,103180.0,0.00014073]
[1734302485565,1.07131402,103190.0,103180.0,0.00014073]
[1734302486651,1.17036805,103190.0,103180.0,0.00014073]
[1734302487077,1.07131402,103190.0,103180.0,0.00014073]
[1734302491185,1.0721145,103190.0,103180.0,0.00014073]
[1734302492360,1.07497374,103190.0,103180.0,0.00014073]
[1734302497056,1.0721145,103190.0,103180.0,0.00014073]
[1734302499751,1.1740145,103190.0,103180.0,0.00014073]
[1734302499970,1.0721145,103190.0,103180.0,0.00014073]
[1734302501758,1.07496251,103190.0,103180.0,0.00014073]
[1734302504435,0.95867997,103190.0,103180.0,0.00014073]
[1734302504661,1.07496251,103190.0,103180.0,0.00014073]
[1734302507855,0.95867997,103190.0,103180.0,0.00014073]
[1734302508071,1.07496251,103190.0,103180.0,0.00014073]
[1734302509418,1.07239438,103190.0,103180.0,0.00014073]
[1734302513585,1.17144841,103190.0,103180.0,0.00014073]
[1734302513983,1.17135802,103190.0,103180.0,0.00014073]
[1734302514782,1.07230399,103190.0,103180.0,0.00014073]
[1734302516515,0.99510399,103190.0,103140.0,0.08896189]
[1734302516724,0.2091775,103160.0,103140.0,0.15]
[1734302517170,0.00767222,103150.0,103140.0,0.343902]
[1734302517364,0.10672625,103150.0,103140.0,0.343902]
[1734302518444,0.10672625,103150.0,103140.0,0.34444816]
[1734302519801,0.10672625,103150.0,103140.0,0.35014816]
[1734302521735,0.10672625,103150.0,103140.0,0.35023436]
[1734302531661,0.10672625,103150.0,103140.0,0.43681023]
[1734302533428,0.10689885,103150.0,103140.0,0.43681023]
[1734302534885,0.10689885,103150.0,103140.0,0.35023436]
[1734302535019,0.10689885,103150.0,103140.0,0.43681023]
[1734302539095,0.10689885,103150.0,103140.0,0.43111023]
[1734302539294,0.10689885,103150.0,103140.0,0.34453436]
[1734302539697,0.10689885,103150.0,103140.0,0.43111023]
[1734302540094,0.10689885,103150.0,103140.0,0.15866362]
[1734302541594,0.23369885,103150.0,103140.0,0.15866362]
[1734302542442,0.18409885,103150.0,103140.0,0.15866362]
[1734302542876,0.10689885,103150.0,103140.0,0.15866362]
[1734302545383,0.10689885,103150.0,103140.0,0.30866362]
[1734302549996,0.10689885,103150.0,103140.0,0.39519067]
[1734302556059,0.18589885,103150.0,103140.0,0.39519067]
[1734302556290,0.18589885,103150.0,103140.0,0.0092479]
[1734302556521,0.18589885,103150.0,103130.0,0.87740225]
[1734302556693,0.186444,103150.0,103130.0,1.18212082]
[1734302556901,0.186444,103150.0,103140.0,0.193902]
[1734302558893,0.186444,103150.0,103140.0,0.28042905]
[1734302559107,0.186444,103150.0,103140.0,0.193902]
[1734302559992,0.186444,103150.0,103140.0,0.28042905]
[1734302560681,0.232344,103150.0,103140.0,0.28042905]
[1734302565615,0.232344,103150.0,103140.0,0.28046346]
[1734302566470,0.232344,103150.0,103140.0,0.41030566]
[1734302566925,0.232344,103150.0,103140.0,0.7183448]
[1734302567811,0.232344,103150.0,103140.0,0.7184311]
[1734302570116,0.232344,103150.0,103140.0,0.5885889]
[1734302570315,0.232344,103150.0,103140.0,0.71871411]
[1734302571491,0.186444,103150.0,103140.0,0.71871411]
[1734302576823,0.186444,103150.0,103140.0,0.86871411]
[1734302577898,0.18452172,103150.0,103140.0,0.86871411]
[1734302579552,0.18452172,103150.0,103140.0,0.86882986]
[1734302586490,0.18452172,103150.0,103140.0,1.04191151]
[1734302587546,0.18452172,103150.0,103140.0,1.04234169]
[1734302588748,0.18452172,103150.0,103140.0,0.86915601]
[1734302591235,0.18452172,103150.0,103140.0,1.04234169]
[1734302591421,0.18452172,103150.0,103140.0,0.86915601]
[1734302592484,0.18452172,103150.0,103140.0,1.04234169]
[1734302593447,0.23362172,103150.0,103140.0,1.04234169]
[1734302595780,0.23362172,103150.0,103140.0,0.86915601]
[1734302595982,0.23362172,103150.0,103140.0,1.04234169]
[1734302598864,0.23362172,103150.0,103140.0,3.04234169]
[1734302599655,0.23362172,103150.0,103140.0,3.04384169]
[1734302601310,0.23362172,103150.0,103140.0,3.04501468]
[1734302610784,0.23362172,103150.0,103140.0,3.04487881]
[1734302619242,0.23362172,103150.0,103140.0,2.87146632]
[1734302619374,0.23362172,103150.0,103140.0,3.04487881]
[1734302619779,0.23362172,103150.0,103140.0,2.87146632]
[1734302620336,0.23362172,103150.0,103140.0,3.0454513]
[1734302621096,0.23362172,103150.0,103140.0,2.87208588]
[1734302621953,0.23212172,103150.0,103140.0,2.87208588]
[1734302623636,0.23212172,103150.0,103140.0,2.22608171]
[1734302623787,0.23212172,103150.0,103140.0,2.41998371]
[1734302624610,0.23212172,103150.0,103140.0,2.42007001]
[1734302628889,0.23212172,103150.0,103140.0,1.42007001]
[1734302629396,0.23212172,103150.0,103140.0,1.3333873]
[1734302629671,0.23212172,103150.0,103140.0,1.42001333]
[1734302633566,0.23212172,103150.0,103140.0,1.54995238]
[1734302635048,0.23212172,103150.0,103140.0,1.42001333]
[1734302635759,0.23212172,103150.0,103140.0,1.54995238]
[1734302639107,0.23212172,103150.0,103140.0,1.85994435]
[1734302642309,0.23212172,103150.0,103140.0,2.03319642]
[1734302644995,0.23212172,103150.0,103140.0,1.85994435]
[1734302645201,0.23212172,103150.0,103140.0,2.03319642]
[1734302645980,0.23212172,103150.0,103140.0,2.03273778]
[1734302647519,0.23212172,103150.0,103140.0,1.3333873]
[1734302647724,0.23212172,103150.0,103140.0,2.03270399]
[1734302650304,0.23212172,103150.0,103140.0,1.85956115]
[1734302650515,0.23212172,103150.0,103140.0,1.54986421]
[1734302651174,0.23212172,103150.0,103140.0,1.41997806]
[1734302651370,0.23212172,103150.0,103140.0,1.85980617]
[1734302651571,0.23212172,103150.0,103140.0,1.85917307]
[1734302653759,0.23197506,103150.0,103140.0,1.85917307]
[1734302655005,0.23197506,103150.0,103140.0,1.85898372]
[1734302657677,0.23197506,103150.0,103140.0,1.85468172]
[1734302659473,0.23197506,103150.0,103140.0,1.85524781]
[1734302661216,0.23197506,103150.0,103140.0,1.85548124]
[1734302662448,0.23197506,103150.0,103140.0,1.54556288]
[1734302662829,0.23197506,103150.0,103140.0,1.85571656]
[1734302663193,0.23197506,103150.0,103140.0,1.54556288]
[1734302663449,0.23197506,103150.0,103140.0,1.85555601]
[1734302664033,0.23197506,103150.0,103140.0,1.85552717]
[1734302664450,0.23197506,103150.0,103140.0,1.54558033]
[1734302665480,0.23197506,103150.0,103140.0,1.85537279]
[1734302667655,0.23197506,103150.0,103140.0,1.85529973]
[1734302668472,0.23197506,103150.0,103140.0,1.85532411]
[1734302672857,0.23197506,103150.0,103140.0,1.85532266]
[1734302679216,0.23197506,103150.0,103140.0,1.0866845]
[1734302680279,0.23197506,103150.0,103140.0,1.2805865]
[1734302682454,0.23197506,103150.0,103140.0,1.28059147]
[1734302685245,0.23197506,103150.0,103140.0,1.1939883]
[1734302687939,0.23197506,103150.0,103140.0,2.1939883]
[1734302691086,0.23197506,103150.0,103140.0,2.28059646]
[1734302691338,0.23197506,103150.0,103140.0,2.28057797]
[1734302691692,0.23197506,103150.0,103140.0,2.1939883]
[1734302700322,0.23197506,103150.0,103140.0,2.3439883]
[1734302707602,0.23197506,103150.0,103140.0,2.14855915]
[1734302709275,0.23197506,103150.0,103140.0,2.34246115]
[1734302715481,0.23197506,103150.0,103140.0,2.34254735]
[1734302716079,0.23197506,103150.0,103140.0,2.40068862]
[1734302716304,0.23197506,103150.0,103140.0,2.42909457]
[1734302716507,0.22197506,103150.0,103140.0,2.34254735]
[1734302717137,0.22197506,103150.0,103140.0,2.40068862]
[1734302717557,0.22197506,103150.0,103140.0,2.48723584]
[1734302720975,0.22197506,103150.0,103140.0,2.40068862]
[1734302721186,0.22197506,103150.0,103140.0,2.48723584]
[1734302721597,0.22197506,103150.0,103140.0,2.42909457]
[1734302722423,0.22197506,103150.0,103140.0,2.42899782]
[1734302723543,0.13456769,103150.0,103140.0,2.42899782]
[1734302727487,0.13456769,103150.0,103140.0,2.48713909]
[1734302730190,0.13456769,103150.0,103140.0,2.98417138]
[1734302730191,0.00646769,103150.0,103140.0,2.98417138]
[1734302730403,0.00646769,103150.0,103140.0,3.33674803]
[1734302730619,0.00646769,103150.0,103140.0,3.36182635]
[1734302730819,0.00646769,103150.0,103140.0,3.18892541]
[1734302731029,0.00646769,103150.0,103140.0,3.66059901]
[1734302731241,0.00646769,103150.0,103140.0,2.66203986]
[1734302731905,0.00467043,103150.0,103140.0,1.97424008]
[1734302732120,0.0811,103170.0,103150.0,0.15]
[1734302732325,0.0811545,103170.0,103160.0,0.48929843]
[1734302732527,0.0811545,103170.0,103160.0,0.40201427]
[1734302733142,0.0811545,103170.0,103160.0,0.48832924]
[1734302733551,0.0811545,103170.0,103160.0,0.40201427]
[1734302734568,0.0811545,103170.0,103160.0,0.46015554]
[1734302734773,5.45e-05,103170.0,103160.0,0.40201427]
[1734302734973,5.45e-05,103170.0,103160.0,0.46015554]
[1734302735397,5.45e-05,103170.0,103160.0,0.40201427]
[1734302735609,5.45e-05,103170.0,103160.0,0.46015554]
[1734302738351,5.45e-05,103170.0,103160.0,0.46963753]
[1734302738874,0.0002269,103170.0,103160.0,0.46963753]
[1734302739876,0.0002269,103170.0,103160.0,0.48948524]
[1734302741158,0.0002269,103170.0,103160.0,0.58853927]
[1734302743959,0.0002269,103170.0,103160.0,0.67485424]
[1734302744163,0.0002269,103170.0,103160.0,0.58853927]
[1734302744560,0.0002269,103170.0,103160.0,0.63853927]
[1734302747363,0.0002269,103170.0,103160.0,0.72452672]
[1734302747576,0.0002269,103170.0,103160.0,0.63853927]
[1734302747784,0.0002269,103170.0,103160.0,0.72452672]
[1734302748196,0.0002269,103170.0,103160.0,0.63853927]
[1734302750798,0.0002269,103170.0,103160.0,0.58853927]
[1734302756374,0.0002269,103170.0,103160.0,0.33783432]
[1734302757224,0.0002269,103170.0,103160.0,0.58170732]
[1734302758011,0.0002269,103170.0,103160.0,0.63170732]
[1734302766325,0.0002269,103170.0,103160.0,0.7176426]
[1734302766755,0.0002269,103170.0,103160.0,0.71777409]
[1734302767525,0.0002269,103170.0,103160.0,0.84687425]
[1734302767954,0.0002269,103170.0,103160.0,0.84690998]
[1734302768618,0.0002269,103170.0,103160.0,1.32621758]
[1734302769629,0.0002269,103170.0,103160.0,1.15405545]
[1734302770274,0.0002269,103170.0,103160.0,1.32621758]
[1734302770513,0.0002269,103170.0,103160.0,1.54142025]
[1734302771572,0.0002269,103170.0,103160.0,1.45533919]
[1734302772198,0.0767269,103170.0,103160.0,1.45834779]
[1734302772672,0.0767269,103170.0,103160.0,1.32922619]
[1734302773084,0.0002269,103170.0,103160.0,1.32922619]
[1734302773309,0.0002269,103170.0,103160.0,1.32931239]
[1734302773812,0.0002269,103170.0,103160.0,1.15715026]
[1734302774033,9e-07,103170.0,103160.0,1.15715026]
[1734302774261,9e-07,103170.0,103160.0,1.25833206]
[1734302774673,9e-07,103170.0,103160.0,1.01955177]
[1734302774873,9e-07,103170.0,103160.0,1.21236856]
[1734302775693,9e-07,103170.0,103160.0,0.99718484]
[1734302776099,9e-07,103170.0,103160.0,0.99529899]
[1734302777337,9e-07,103170.0,103160.0,1.00470568]
[1734302777949,9e-07,103170.0,103160.0,1.02379573]
[1734302778365,0.1272733,103190.0,103180.0,0.31628254]
[1734302778538,0.1272733,103190.0,103180.0,1.12961095]
[1734302779321,0.1272733,103190.0,103180.0,1.30175396]
[1734302780441,0.1272733,103190.0,103180.0,0.60917257]
[1734302780642,0.1272733,103190.0,103180.0,1.30031028]
[1734302781892,0.1272733,103190.0,103180.0,1.35845155]
[1734302782108,0.1272733,103190.0,103180.0,1.30031028]
[1734302782457,0.1272733,103190.0,103180.0,1.12822814]
[1734302782677,0.1272733,103190.0,103180.0,1.40845155]
[1734302782905,0.1272733,103190.0,103180.0,1.35031028]
[1734302783314,0.1272733,103190.0,103180.0,1.40845155]
[1734302784337,0.1272733,103190.0,103180.0,1.35031028]
[1734302784616,0.1274457,103190.0,103180.0,1.40845155]
[1734302784790,0.1274457,103190.0,103180.0,1.53751316]
[1734302785109,0.1274457,103190.0,103180.0,1.53650602]
[1734302786054,0.1274457,103190.0,103180.0,1.40751422]
[1734302786698,0.1274457,103190.0,103180.0,1.49749208]
[1734302787087,0.1274457,103190.0,103180.0,1.36852967]
[1734302787296,0.1274457,103190.0,103180.0,1.37814012]
[1734302787467,0.1274457,103190.0,103180.0,1.50708938]
[1734302788269,0.1274457,103190.0,103180.0,1.37814012]
[1734302789061,0.1274457,103190.0,103180.0,1.50708049]
[1734302789582,0.1274457,103190.0,103180.0,1.50665982]
[1734302793852,0.1274457,103190.0,103180.0,1.56480109]
[1734302794071,0.1274457,103190.0,103180.0,1.50665982]
[1734302794486,0.1274457,103190.0,103180.0,1.56480109]
[1734302798503,0.1274457,103190.0,103180.0,1.56429024]
[1734302802280,0.1274457,103190.0,103180.0,1.28986643]
[1734302802476,0.1274457,103190.0,103180.0,1.06193371]
[1734302802680,0.1274457,103190.0,103180.0,0.49559361]
[1734302802977,0.1274457,103190.0,103180.0,0.02876717]
[1734302803186,0.132,103180.0,103170.0,0.25198027]
[1734302804245,0.132,103180.0,103170.0,0.26159405]
[1734302804443,0.132,103180.0,103170.0,0.41159405]
[1734302805217,0.132,103180.0,103170.0,0.4313901]
[1734302806602,0.132,103180.0,103170.0,0.4314763]
[1734302807008,0.23105403,103180.0,103170.0,0.37333503]
[1734302807209,0.23105403,103180.0,103170.0,0.36372125]
[1734302807410,0.23105403,103180.0,103170.0,0.3439252]
[1734302815750,0.23105403,103180.0,103170.0,0.1939252]
[1734302817212,0.23105403,103180.0,103170.0,9.1939252]
[1734302818949,0.23122643,103180.0,103170.0,9.1939252]
[1734302832300,0.30422643,103180.0,103170.0,9.1939252]
[1734302832508,0.3623677,103180.0,103170.0,9.1939252]
[1734302835549,0.30422643,103180.0,103170.0,9.1939252]
[1734302838664,0.3623677,103180.0,103170.0,9.1939252]
[1734302844884,0.3623677,103180.0,103170.0,9.01808306]
[1734302845147,0.3623677,103180.0,103170.0,9.0000862]
[1734302845674,0.3623677,103180.0,103170.0,9.1939252]
[1734302847329,0.3623677,103180.0,103170.0,9.0000862]
[1734302848580,0.64291802,103180.0,103170.0,9.0000862]
[1734302848821,0.44908202,103180.0,103170.0,9.1939402]
[1734302849314,0.3623677,103180.0,103170.0,9.1939402]
[1734302849556,0.44908202,103180.0,103170.0,9.1939402]
[1734302849802,0.3623677,103180.0,103170.0,9.1939402]
[1734302850050,0.44908202,103180.0,103170.0,9.1939402]
[1734302851772,0.39094075,103180.0,103170.0,9.1939402]
[1734302852054,0.44908202,103180.0,103170.0,9.1939402]
[1734302855132,0.57915351,103180.0,103170.0,9.1939402]
[1734302856569,0.57998913,103180.0,103170.0,9.1939402]
[1734302859142,0.69594501,103180.0,103170.0,9.1939402]
[1734302860051,0.52184786,103180.0,103170.0,9.1939402]
[1734302860701,0.69594501,103180.0,103170.0,9.1939402]
[1734302860881,0.52184786,103180.0,103170.0,9.1939402]
[1734302861705,0.69594501,103180.0,103170.0,9.1939402]
[1734302862095,0.52184786,103180.0,103170.0,9.1939402]
[1734302862300,0.69594501,103180.0,103170.0,9.1939402]
[1734302862901,1.10740245,103180.0,103170.0,9.0000862]
[1734302863277,0.88978101,103180.0,103170.0,9.0000862]
[1734302863490,1.10740245,103180.0,103170.0,9.0000862]
[1734302863899,1.10740245,103180.0,103170.0,9.1939402]
[1734302865513,1.02035388,103180.0,103170.0,9.1939402]
[1734302866300,0.88984347,103180.0,103170.0,9.1939402]
[1734302866505,1.10746491,103180.0,103170.0,9.1939402]
[1734302867442,1.10746759,103180.0,103170.0,9.1939402]
[1734302867568,1.02035388,103180.0,103170.0,9.1939402]
[1734302868021,1.10747191,103180.0,103170.0,9.1939402]
[1734302868216,1.10747337,103180.0,103170.0,9.1939402]
[1734302868751,1.02035388,103180.0,103170.0,9.1939402]
[1734302869263,0.88985802,103180.0,103170.0,9.1939402]
[1734302869479,1.02035388,103180.0,103170.0,9.1939402]
[1734302869678,1.10748664,103180.0,103170.0,9.1939402]
[1734302870532,1.02035388,103180.0,103170.0,9.1939402]
[1734302871338,0.88987159,103180.0,103170.0,9.1939402]
[1734302871492,1.10749303,103180.0,103170.0,9.1939402]
[1734302871691,1.02035388,103180.0,103170.0,9.1939402]
[1734302872110,1.10750178,103180.0,103170.0,9.0000862]